[Event "Early-Titled-Tuesday-Blitz-May-07-2024"]
[Site "Chess.com"]
[Date "2024.05.07"]
[Round "10"]
[White "imdvb6307"]
[Black "HouseOfDurin"]
[Result "1-0"]
[WhiteElo "2511"]
[BlackElo "2246"]
[TimeControl "180+1"]
[EndTime "10:03:00 PDT"]
[Termination "imdvb6307 won by resignation"]

1. d4 {[%clk 0:03:00.9]} 1... Nf6 {[%clk 0:02:59.3]} 2. Nf3 {[%clk 0:03:01.3]}
2... c5 {[%clk 0:02:59.9]} 3. e3 {[%clk 0:02:58.3]} 3... b6 {[%clk 0:02:59.4]}
4. c4 {[%clk 0:02:47]} 4... cxd4 {[%clk 0:02:58.5]} 5. exd4 {[%clk 0:02:43.5]}
5... Bb7 {[%clk 0:02:58.8]} 6. d5 {[%clk 0:02:42.4]} 6... d6 {[%clk 0:02:57.7]}
7. Nd4 {[%clk 0:02:26.9]} 7... g6 {[%clk 0:02:55.5]} 8. Be2 {[%clk 0:02:20.5]}
8... Bg7 {[%clk 0:02:55.3]} 9. Nc3 {[%clk 0:02:19.3]} 9... O-O {[%clk
0:02:55.1]} 10. O-O {[%clk 0:02:19.6]} 10... Re8 {[%clk 0:02:42.3]} 11. Bf4
{[%clk 0:02:09]} 11... e5 {[%clk 0:02:34.1]} 12. dxe6 {[%clk 0:02:08.4]} 12...
fxe6 {[%clk 0:02:34.8]} 13. Bf3 {[%clk 0:02:00.9]} 13... d5 {[%clk 0:02:01.3]}
14. Re1 {[%clk 0:01:43.1]} 14... Ne4 {[%clk 0:01:50.4]} 15. Nxe4 {[%clk
0:00:51]} 15... dxe4 {[%clk 0:01:51.3]} 16. Bxe4 {[%clk 0:00:51.3]} 16... Bxe4
{[%clk 0:01:48.1]} 17. Rxe4 {[%clk 0:00:51.4]} 17... e5 {[%clk 0:01:48.3]} 18.
Qe2 {[%clk 0:00:51.7]} 18... Nd7 {[%clk 0:01:34.5]} 19. Nc6 {[%clk 0:00:23]}
19... Qf6 {[%clk 0:01:28.3]} 20. Nxe5 {[%clk 0:00:22.8]} 20... Nxe5 {[%clk
0:01:26.8]} 21. Re1 {[%clk 0:00:22.7]} 21... Rad8 {[%clk 0:00:54.2]} 22. h3
{[%clk 0:00:22.6]} 22... Qf7 {[%clk 0:00:29.4]} 23. Bxe5 {[%clk 0:00:22.6]}
23... Bxe5 {[%clk 0:00:24.2]} 24. Rxe5 {[%clk 0:00:20.5]} 24... Rxe5 {[%clk
0:00:25.1]} 25. Qxe5 {[%clk 0:00:20.6]} 25... Qxc4 {[%clk 0:00:24.3]} 26. Re3
{[%clk 0:00:18.4]} 26... Qxa2 {[%clk 0:00:10.7]} 27. Rc3 {[%clk 0:00:17.7]}
27... Qd5 {[%clk 0:00:06.6]} 28. Qf6 {[%clk 0:00:16.4]} 28... Qd6 {[%clk
0:00:04]} 29. Qf3 {[%clk 0:00:13.4]} 29... Qd1+ {[%clk 0:00:03.3]} 30. Qxd1
{[%clk 0:00:13.6]} 30... Rxd1+ {[%clk 0:00:04.2]} 31. Kh2 {[%clk 0:00:14.2]}
31... Rd7 {[%clk 0:00:04.2]} 32. Kg3 {[%clk 0:00:13.4]} 32... Kf7 {[%clk
0:00:04.8]} 33. f4 {[%clk 0:00:12.2]} 33... Rb7 {[%clk 0:00:04.6]} 34. Rc6
{[%clk 0:00:11]} 34... a5 {[%clk 0:00:04]} 35. Kg4 {[%clk 0:00:11.4]} 35... b5
{[%clk 0:00:03.3]} 36. Ra6 {[%clk 0:00:10.1]} 36... a4 {[%clk 0:00:03.8]} 37. h4
{[%clk 0:00:09.8]} 37... h6 {[%clk 0:00:03.1]} 38. h5 {[%clk 0:00:09.9]} 38...
gxh5+ {[%clk 0:00:02.1]} 39. Kxh5 {[%clk 0:00:10.3]} 39... Kg7 {[%clk
0:00:01.3]} 40. Rg6+ {[%clk 0:00:09.6]} 40... Kf7 {[%clk 0:00:01.3]} 41. Rxh6
{[%clk 0:00:10]} 41... b4 {[%clk 0:00:01.8]} 42. Rh7+ {[%clk 0:00:10.1]} 42...
Ke6 {[%clk 0:00:01.8]} 43. Rxb7 {[%clk 0:00:10.2]} 43... Kd5 {[%clk 0:00:02.7]}
44. Rxb4 {[%clk 0:00:10.7]} 1-0

[Event "Early-Titled-Tuesday-Blitz-May-07-2024"]
[Site "Chess.com"]
[Date "2024.05.07"]
[Round "10"]
[White "MatthewG-p4p"]
[Black "GlavkonVVS"]
[Result "0-1"]
[WhiteElo "2858"]
[BlackElo "2689"]
[TimeControl "180+1"]
[EndTime "10:03:02 PDT"]
[Termination "GlavkonVVS won by resignation"]

1. f4 {[%clk 0:03:00.9]} 1... Nf6 {[%clk 0:02:59.3]} 2. Nf3 {[%clk 0:03:00.3]}
2... c5 {[%clk 0:03:00]} 3. g3 {[%clk 0:03:00.7]} 3... Nc6 {[%clk 0:03:00.2]} 4.
Bg2 {[%clk 0:03:01.5]} 4... g6 {[%clk 0:03:00.3]} 5. O-O {[%clk 0:03:02.4]} 5...
Bg7 {[%clk 0:03:00.4]} 6. d3 {[%clk 0:03:03.3]} 6... O-O {[%clk 0:03:00.5]} 7.
e4 {[%clk 0:03:03.6]} 7... d6 {[%clk 0:03:01.2]} 8. Nc3 {[%clk 0:03:03.7]} 8...
Rb8 {[%clk 0:03:01.6]} 9. a4 {[%clk 0:03:03.8]} 9... a6 {[%clk 0:03:01.9]} 10.
h3 {[%clk 0:03:04.6]} 10... b5 {[%clk 0:03:02]} 11. axb5 {[%clk 0:03:05.5]}
11... axb5 {[%clk 0:03:02.4]} 12. g4 {[%clk 0:03:06.4]} 12... b4 {[%clk
0:03:02.9]} 13. Ne2 {[%clk 0:03:07.3]} 13... c4 {[%clk 0:03:01]} 14. Ng3 {[%clk
0:03:04.8]} 14... b3 {[%clk 0:02:56.5]} 15. dxc4 {[%clk 0:03:04.2]} 15... bxc2
{[%clk 0:02:56.4]} 16. Qxc2 {[%clk 0:03:05.1]} 16... Nb4 {[%clk 0:02:53.7]} 17.
Qe2 {[%clk 0:03:03.9]} 17... Bb7 {[%clk 0:02:44.6]} 18. g5 {[%clk 0:03:02.9]}
18... Nd7 {[%clk 0:02:44.2]} 19. h4 {[%clk 0:02:59.5]} 19... Nc5 {[%clk
0:02:44.1]} 20. h5 {[%clk 0:02:55.1]} 20... Ncd3 {[%clk 0:02:27.3]} 21. f5
{[%clk 0:02:47]} 21... Qc8 {[%clk 0:02:13.7]} 22. Be3 {[%clk 0:02:06.6]} 22...
Qxc4 {[%clk 0:02:12.6]} 23. f6 {[%clk 0:01:49.5]} 23... exf6 {[%clk 0:02:09.5]}
24. gxf6 {[%clk 0:01:50.4]} 24... Bxf6 {[%clk 0:02:07.1]} 25. Nd2 {[%clk
0:01:50.9]} 25... Qe6 {[%clk 0:02:04.4]} 26. Ra7 {[%clk 0:01:18.6]} 26... Bxb2
{[%clk 0:01:54]} 27. Nf3 {[%clk 0:00:56.4]} 27... Qg4 {[%clk 0:01:49.8]} 28. Kh2
{[%clk 0:00:45.7]} 28... Bxe4 {[%clk 0:01:30.1]} 29. Nxe4 {[%clk 0:00:42.3]}
29... Qxe4 {[%clk 0:01:30.1]} 30. Qd2 {[%clk 0:00:21.8]} 30... Nd5 {[%clk
0:01:22]} 31. Bg5 {[%clk 0:00:17.7]} 31... Bc3 {[%clk 0:01:13.5]} 32. Qa2 {[%clk
0:00:09.6]} 32... Rb2 {[%clk 0:01:12.5]} 33. Qa4 {[%clk 0:00:10]} 33... Qe2
{[%clk 0:01:04.2]} 34. Qg4 {[%clk 0:00:04.2]} 34... Ne5 {[%clk 0:01:03.2]} 35.
Nxe5 {[%clk 0:00:04]} 35... Bxe5+ {[%clk 0:01:03.4]} 36. Kh3 {[%clk 0:00:04.2]}
36... Qxg4+ {[%clk 0:01:03.4]} 37. Kxg4 {[%clk 0:00:05.1]} 37... Rxg2+ {[%clk
0:01:03.8]} 38. Kh4 {[%clk 0:00:06]} 38... h6 {[%clk 0:01:00.9]} 39. Bxh6 {[%clk
0:00:05.2]} 39... Rh2+ {[%clk 0:00:55.1]} 40. Kg4 {[%clk 0:00:05.1]} 40... f5+
{[%clk 0:00:53.8]} 41. Kg5 {[%clk 0:00:04.7]} 41... Rxh5+ {[%clk 0:00:53]} 42.
Kxg6 {[%clk 0:00:04.7]} 42... Rxh6+ {[%clk 0:00:51.4]} 43. Kxh6 {[%clk
0:00:04.7]} 43... Rf6+ {[%clk 0:00:39.3]} 44. Kg5 {[%clk 0:00:04.4]} 44... f4
{[%clk 0:00:35.3]} 45. Rf3 {[%clk 0:00:04]} 45... Rf7 {[%clk 0:00:29.8]} 46.
Ra8+ {[%clk 0:00:02.9]} 46... Kg7 {[%clk 0:00:30.1]} 47. Kg4 {[%clk 0:00:02.8]}
47... Kf6 {[%clk 0:00:29.1]} 48. Rb3 {[%clk 0:00:01.9]} 48... Ke6 {[%clk
0:00:29]} 49. Kf3 {[%clk 0:00:02.1]} 49... Rg7 {[%clk 0:00:29.2]} 50. Kf2 {[%clk
0:00:01.1]} 50... Rg3 {[%clk 0:00:28.6]} 51. Ke2 {[%clk 0:00:01.9]} 51... Rxb3
{[%clk 0:00:28.2]} 0-1

[Event "Early-Titled-Tuesday-Blitz-May-07-2024"]
[Site "Chess.com"]
[Date "2024.05.07"]
[Round "10"]
[White "Mrlammy"]
[Black "Ryukchess81"]
[Result "1-0"]
[WhiteElo "2602"]
[BlackElo "2423"]
[TimeControl "180+1"]
[EndTime "10:03:04 PDT"]
[Termination "Mrlammy won on time"]

1. d4 {[%clk 0:03:00.9]} 1... d5 {[%clk 0:02:59.7]} 2. c4 {[%clk 0:03:01.5]}
2... e6 {[%clk 0:03:00.2]} 3. Nf3 {[%clk 0:03:01.1]} 3... Nf6 {[%clk 0:02:59.7]}
4. Nc3 {[%clk 0:03:01.6]} 4... Be7 {[%clk 0:03:00.3]} 5. Bf4 {[%clk 0:03:01.2]}
5... O-O {[%clk 0:03:00.7]} 6. e3 {[%clk 0:03:01.8]} 6... a6 {[%clk 0:03:01.1]}
7. c5 {[%clk 0:02:57.8]} 7... Ne4 {[%clk 0:03:01.2]} 8. Nxe4 {[%clk 0:02:55.1]}
8... dxe4 {[%clk 0:03:02.1]} 9. Nd2 {[%clk 0:02:55.5]} 9... f5 {[%clk
0:03:02.5]} 10. Bc4 {[%clk 0:02:49.8]} 10... Kh8 {[%clk 0:03:02.4]} 11. Qb3
{[%clk 0:02:48.4]} 11... g5 {[%clk 0:02:58.9]} 12. Be5+ {[%clk 0:02:34.1]} 12...
Bf6 {[%clk 0:02:59.1]} 13. Bxe6 {[%clk 0:02:10]} 13... Bxe5 {[%clk 0:02:59.1]}
14. Bxc8 {[%clk 0:02:02.5]} 14... Qxc8 {[%clk 0:02:55]} 15. dxe5 {[%clk
0:02:02.5]} 15... Nc6 {[%clk 0:02:54]} 16. Qc3 {[%clk 0:01:58.5]} 16... Qe6
{[%clk 0:02:53.7]} 17. Nc4 {[%clk 0:01:53.4]} 17... Rfd8 {[%clk 0:02:48.9]} 18.
b3 {[%clk 0:01:36.1]} 18... Rd3 {[%clk 0:02:48.1]} 19. Qb2 {[%clk 0:01:34.8]}
19... Rad8 {[%clk 0:02:41.1]} 20. O-O {[%clk 0:01:32.7]} 20... Kg8 {[%clk
0:02:35.4]} 21. Rac1 {[%clk 0:01:12.8]} 21... R8d5 {[%clk 0:02:32.5]} 22. f4
{[%clk 0:01:00.6]} 22... gxf4 {[%clk 0:02:15.1]} 23. exf4 {[%clk 0:00:51]} 23...
Rxc5 {[%clk 0:02:10.6]} 24. Qf2 {[%clk 0:00:45.5]} 24... Rcd5 {[%clk 0:02:02.1]}
25. Ne3 {[%clk 0:00:37.3]} 25... Rd7 {[%clk 0:01:50.8]} 26. Kh1 {[%clk
0:00:18.6]} 26... Rd2 {[%clk 0:01:44.6]} 27. Qg3+ {[%clk 0:00:18.4]} 27... Rg7
{[%clk 0:01:44.9]} 28. Qh3 {[%clk 0:00:17.9]} 28... Nd4 {[%clk 0:01:42.6]} 29.
Rc4 {[%clk 0:00:16]} 29... Rf7 {[%clk 0:01:05.3]} 30. Rxd4 {[%clk 0:00:11.9]}
30... Rxd4 {[%clk 0:01:03.7]} 31. Rc1 {[%clk 0:00:09.5]} 31... c6 {[%clk
0:01:03.6]} 32. Qg3+ {[%clk 0:00:07.3]} 32... Kf8 {[%clk 0:00:59.2]} 33. Nc4
{[%clk 0:00:07.1]} 33... Qd5 {[%clk 0:00:55.4]} 34. h3 {[%clk 0:00:04.4]} 34...
Rd1+ {[%clk 0:00:50.5]} 35. Rxd1 {[%clk 0:00:04.9]} 35... Qxd1+ {[%clk
0:00:51.4]} 36. Kh2 {[%clk 0:00:05.6]} 36... Rg7 {[%clk 0:00:28.4]} 37. Qh4
{[%clk 0:00:05]} 37... e3 {[%clk 0:00:16.5]} 38. Nd6 {[%clk 0:00:04.5]} 38...
Rf7 {[%clk 0:00:04.3]} 39. Qd8+ {[%clk 0:00:04.1]} 39... Kg7 {[%clk 0:00:05.2]}
40. Qg5+ {[%clk 0:00:04.7]} 40... Kf8 {[%clk 0:00:05.6]} 41. Qd8+ {[%clk
0:00:04.6]} 41... Kg7 {[%clk 0:00:05.9]} 42. Ne8+ {[%clk 0:00:04.9]} 42... Kf8
{[%clk 0:00:02.4]} 43. Qxd1 {[%clk 0:00:05.1]} 43... Kxe8 {[%clk 0:00:01.6]} 44.
Qe2 {[%clk 0:00:05.8]} 1-0

[Event "Early-Titled-Tuesday-Blitz-May-07-2024"]
[Site "Chess.com"]
[Date "2024.05.07"]
[Round "10"]
[White "MikeWizard"]
[Black "Sofia_Blokhin"]
[Result "1-0"]
[WhiteElo "2061"]
[BlackElo "2251"]
[TimeControl "180+1"]
[EndTime "10:03:05 PDT"]
[Termination "MikeWizard won by resignation"]

1. d4 {[%clk 0:03:00.9]} 1... f5 {[%clk 0:02:59.7]} 2. Bg5 {[%clk 0:02:58.9]}
2... h6 {[%clk 0:02:58.6]} 3. Bh4 {[%clk 0:02:56.3]} 3... g5 {[%clk 0:02:57.9]}
4. e3 {[%clk 0:02:55.7]} 4... Nf6 {[%clk 0:02:57.2]} 5. Bg3 {[%clk 0:02:55.1]}
5... d6 {[%clk 0:02:55.7]} 6. h4 {[%clk 0:02:47.4]} 6... Rg8 {[%clk 0:02:53.6]}
7. hxg5 {[%clk 0:02:46.5]} 7... hxg5 {[%clk 0:02:53.5]} 8. Be2 {[%clk
0:02:44.5]} 8... Be6 {[%clk 0:02:48.3]} 9. Bh5+ {[%clk 0:02:42.9]} 9... Nxh5
{[%clk 0:02:47.5]} 10. Qxh5+ {[%clk 0:02:41.8]} 10... Bf7 {[%clk 0:02:47.5]} 11.
Qh7 {[%clk 0:02:39]} 11... Qd7 {[%clk 0:02:37.7]} 12. Nc3 {[%clk 0:02:36.8]}
12... Nc6 {[%clk 0:02:33.9]} 13. Nf3 {[%clk 0:02:34.9]} 13... e6 {[%clk
0:02:22.9]} 14. O-O-O {[%clk 0:02:31.3]} 14... O-O-O {[%clk 0:02:21.8]} 15. a3
{[%clk 0:02:29.8]} 15... Rg7 {[%clk 0:02:04.9]} 16. Qh2 {[%clk 0:02:20.9]} 16...
Be7 {[%clk 0:02:02.7]} 17. Qg1 {[%clk 0:02:19.7]} 17... g4 {[%clk 0:01:51.7]}
18. Nd2 {[%clk 0:02:18.9]} 18... Rgg8 {[%clk 0:01:45.9]} 19. Bh4 {[%clk
0:02:16.3]} 19... Bxh4 {[%clk 0:01:41.1]} 20. Rxh4 {[%clk 0:02:16.2]} 20... e5
{[%clk 0:01:38.6]} 21. d5 {[%clk 0:02:10.8]} 21... Ne7 {[%clk 0:01:35.5]} 22.
Nf1 {[%clk 0:02:03.9]} 22... c6 {[%clk 0:01:28.9]} 23. dxc6 {[%clk 0:02:01.4]}
23... bxc6 {[%clk 0:01:28.9]} 24. Ng3 {[%clk 0:01:58.8]} 24... d5 {[%clk
0:01:28]} 25. Qf1 {[%clk 0:01:49.5]} 25... Qb7 {[%clk 0:01:24.5]} 26. Rh7 {[%clk
0:01:47.5]} 26... Bg6 {[%clk 0:01:19.9]} 27. Rh6 {[%clk 0:01:45.4]} 27... d4
{[%clk 0:01:15.8]} 28. exd4 {[%clk 0:01:40.7]} 28... exd4 {[%clk 0:01:13.5]} 29.
Nce2 {[%clk 0:01:38.8]} 29... c5 {[%clk 0:01:02.8]} 30. Nf4 {[%clk 0:01:38.4]}
30... Bf7 {[%clk 0:00:55.8]} 31. Rh7 {[%clk 0:01:34.7]} 31... Rgf8 {[%clk
0:00:51.5]} 32. Qe1 {[%clk 0:01:25.2]} 32... Rd6 {[%clk 0:00:36.3]} 33. Qe5
{[%clk 0:01:19.7]} 33... Qc7 {[%clk 0:00:18]} 34. Nxf5 {[%clk 0:01:12.8]} 34...
Nxf5 {[%clk 0:00:10.8]} 35. Qxf5+ {[%clk 0:01:12.3]} 35... Kb8 {[%clk
0:00:11.1]} 36. Re1 {[%clk 0:01:02.2]} 36... Rb6 {[%clk 0:00:11]} 37. Qe5 {[%clk
0:00:58.6]} 37... Qxe5 {[%clk 0:00:10.1]} 38. Rxe5 {[%clk 0:00:58.5]} 38... c4
{[%clk 0:00:09.9]} 39. Rf5 {[%clk 0:00:56.5]} 39... Rb7 {[%clk 0:00:09.3]} 40.
Ne6 {[%clk 0:00:53.2]} 40... Re8 {[%clk 0:00:08.9]} 41. Nc5 {[%clk 0:00:48.1]}
41... Rbe7 {[%clk 0:00:05.9]} 42. Na6+ {[%clk 0:00:33.4]} 42... Kb7 {[%clk
0:00:05.2]} 43. Rfxf7 {[%clk 0:00:33.3]} 43... Rxf7 {[%clk 0:00:04.6]} 44. Rxf7+
{[%clk 0:00:32.3]} 44... Kxa6 {[%clk 0:00:05.5]} 45. Rf4 {[%clk 0:00:31.8]}
45... Re1+ {[%clk 0:00:05.1]} 46. Kd2 {[%clk 0:00:31.6]} 46... Rb1 {[%clk
0:00:04.9]} 47. Rxd4 {[%clk 0:00:30.2]} 47... Rxb2 {[%clk 0:00:05.3]} 48. Rxc4
{[%clk 0:00:30.2]} 48... Ra2 {[%clk 0:00:05.7]} 49. a4 {[%clk 0:00:29.5]} 49...
Ka5 {[%clk 0:00:05.3]} 50. Rxg4 {[%clk 0:00:28.8]} 50... Rxa4 {[%clk 0:00:05.6]}
51. Rxa4+ {[%clk 0:00:28]} 51... Kxa4 {[%clk 0:00:06.4]} 52. g4 {[%clk
0:00:28.1]} 52... Kb4 {[%clk 0:00:05.7]} 53. g5 {[%clk 0:00:27.8]} 53... a5
{[%clk 0:00:06.6]} 54. g6 {[%clk 0:00:26.4]} 54... a4 {[%clk 0:00:07.5]} 55. g7
{[%clk 0:00:26.6]} 55... a3 {[%clk 0:00:08.4]} 56. g8=Q {[%clk 0:00:26.3]} 56...
a2 {[%clk 0:00:09.3]} 57. Qxa2 {[%clk 0:00:25.7]} 1-0

[Event "Early-Titled-Tuesday-Blitz-May-07-2024"]
[Site "Chess.com"]
[Date "2024.05.07"]
[Round "10"]
[White "Juicy_Fork"]
[Black "jinbojinbo"]
[Result "0-1"]
[WhiteElo "2458"]
[BlackElo "2652"]
[TimeControl "180+1"]
[EndTime "10:03:06 PDT"]
[Termination "jinbojinbo won by resignation"]

1. e4 {[%clk 0:03:00.9]} 1... e5 {[%clk 0:02:59.8]} 2. Nf3 {[%clk 0:03:00.6]}
2... Nc6 {[%clk 0:03:00.1]} 3. Bb5 {[%clk 0:03:00]} 3... a6 {[%clk 0:02:59.9]}
4. Ba4 {[%clk 0:02:57.9]} 4... d6 {[%clk 0:03:00]} 5. O-O {[%clk 0:02:55.9]}
5... Bd7 {[%clk 0:02:59.9]} 6. c4 {[%clk 0:02:55.7]} 6... Nf6 {[%clk 0:02:57]}
7. Nc3 {[%clk 0:02:54.9]} 7... Be7 {[%clk 0:02:56.4]} 8. d4 {[%clk 0:02:54.6]}
8... exd4 {[%clk 0:02:55.4]} 9. Nxd4 {[%clk 0:02:54.8]} 9... Nxd4 {[%clk
0:02:55.3]} 10. Bxd7+ {[%clk 0:02:53.9]} 10... Qxd7 {[%clk 0:02:56.2]} 11. Qxd4
{[%clk 0:02:54.6]} 11... O-O {[%clk 0:02:56.6]} 12. Bg5 {[%clk 0:02:53.1]} 12...
Rfe8 {[%clk 0:02:56.3]} 13. Rad1 {[%clk 0:02:50.2]} 13... h6 {[%clk 0:02:54.9]}
14. Bh4 {[%clk 0:02:46.5]} 14... Qe6 {[%clk 0:02:53.5]} 15. Rfe1 {[%clk
0:02:41.7]} 15... Rad8 {[%clk 0:02:42.4]} 16. h3 {[%clk 0:02:21.9]} 16... c6
{[%clk 0:02:08.5]} 17. f4 {[%clk 0:01:45.4]} 17... Nh5 {[%clk 0:02:01]} 18. Bxe7
{[%clk 0:01:38]} 18... Qxe7 {[%clk 0:01:59.5]} 19. Qf2 {[%clk 0:01:25.3]} 19...
Nf6 {[%clk 0:01:53.8]} 20. g4 {[%clk 0:01:12.3]} 20... b5 {[%clk 0:01:52.5]} 21.
e5 {[%clk 0:00:47.1]} 21... dxe5 {[%clk 0:01:49.3]} 22. Rxd8 {[%clk 0:00:46.2]}
22... Qxd8 {[%clk 0:01:48.9]} 23. fxe5 {[%clk 0:00:46]} 23... Nd7 {[%clk
0:01:46.5]} 24. Qd4 {[%clk 0:00:25.2]} 24... Qh4 {[%clk 0:01:36.5]} 25. Re3
{[%clk 0:00:17.6]} 25... Nxe5 {[%clk 0:01:35.1]} 26. Nd1 {[%clk 0:00:16]} 26...
Rd8 {[%clk 0:01:23.5]} 27. Qxe5 {[%clk 0:00:12.6]} 27... Rxd1+ {[%clk
0:01:22.2]} 28. Kg2 {[%clk 0:00:12.9]} 28... Rd2+ {[%clk 0:01:18.3]} 29. Re2
{[%clk 0:00:12.9]} 29... Rxe2+ {[%clk 0:01:16.3]} 30. Qxe2 {[%clk 0:00:13.8]}
30... Qf6 {[%clk 0:01:16.1]} 31. Qe8+ {[%clk 0:00:11.3]} 31... Kh7 {[%clk
0:01:15.5]} 32. Qe4+ {[%clk 0:00:12.2]} 32... g6 {[%clk 0:01:15.8]} 33. Qe2
{[%clk 0:00:05.4]} 33... bxc4 {[%clk 0:01:15.4]} 34. a4 {[%clk 0:00:04.9]} 34...
Qd4 {[%clk 0:01:12.7]} 35. Kg3 {[%clk 0:00:03.5]} 35... c3 {[%clk 0:01:11.1]}
36. bxc3 {[%clk 0:00:02.5]} 36... Qxc3+ {[%clk 0:01:11.2]} 37. Kg2 {[%clk
0:00:02.1]} 37... a5 {[%clk 0:01:10.8]} 38. Qf2 {[%clk 0:00:01.6]} 38... Kg7
{[%clk 0:01:09.9]} 39. h4 {[%clk 0:00:01.4]} 39... c5 {[%clk 0:01:09.8]} 40. g5
{[%clk 0:00:01.5]} 40... hxg5 {[%clk 0:01:09.6]} 41. hxg5 {[%clk 0:00:02.3]}
41... Qe5 {[%clk 0:01:09.4]} 42. Qh4 {[%clk 0:00:01.9]} 42... c4 {[%clk
0:01:08]} 43. Qxc4 {[%clk 0:00:01.5]} 43... Qxg5+ {[%clk 0:01:07.9]} 44. Kf3
{[%clk 0:00:02.2]} 44... Qf5+ {[%clk 0:01:08.1]} 45. Kg3 {[%clk 0:00:02.3]}
45... Qe5+ {[%clk 0:01:08.2]} 46. Kf3 {[%clk 0:00:02.4]} 46... g5 {[%clk
0:01:06.3]} 47. Kg4 {[%clk 0:00:01.6]} 47... Qf4+ {[%clk 0:01:02.9]} 48. Qxf4
{[%clk 0:00:01.1]} 48... gxf4 {[%clk 0:01:03.8]} 49. Kxf4 {[%clk 0:00:01.4]}
49... Kf6 {[%clk 0:01:04.3]} 50. Ke4 {[%clk 0:00:01.3]} 50... Ke6 {[%clk
0:01:04.8]} 51. Kd3 {[%clk 0:00:00.4]} 51... Kd5 {[%clk 0:01:05]} 52. Ke3 {[%clk
0:00:00.3]} 52... Kc4 {[%clk 0:01:05.2]} 53. Kf4 {[%clk 0:00:01.2]} 53... Kb4
{[%clk 0:01:05.7]} 54. Kf5 {[%clk 0:00:02.1]} 54... Kxa4 {[%clk 0:01:06.2]} 55.
Kf6 {[%clk 0:00:03]} 55... Kb3 {[%clk 0:01:06.9]} 56. Kxf7 {[%clk 0:00:03.9]}
56... a4 {[%clk 0:01:07.8]} 57. Ke6 {[%clk 0:00:04.8]} 57... a3 {[%clk
0:01:08.6]} 58. Kd5 {[%clk 0:00:05.7]} 58... a2 {[%clk 0:01:09.5]} 59. Kd4
{[%clk 0:00:06.6]} 59... a1=Q+ {[%clk 0:01:10.2]} 60. Kc5 {[%clk 0:00:07.1]}
60... Qc3+ {[%clk 0:01:10.2]} 61. Kb5 {[%clk 0:00:07.2]} 61... Qd4 {[%clk
0:01:09.6]} 62. Ka6 {[%clk 0:00:08.1]} 62... Kb4 {[%clk 0:01:08.4]} 0-1

[Event "Early-Titled-Tuesday-Blitz-May-07-2024"]
[Site "Chess.com"]
[Date "2024.05.07"]
[Round "10"]
[White "Fh2411"]
[Black "Casablanca"]
[Result "1-0"]
[WhiteElo "2561"]
[BlackElo "2708"]
[TimeControl "180+1"]
[EndTime "10:03:08 PDT"]
[Termination "Fh2411 won by resignation"]

1. d4 {[%clk 0:03:00.9]} 1... Nf6 {[%clk 0:02:57.9]} 2. Nf3 {[%clk 0:03:01.2]}
2... d5 {[%clk 0:02:55.1]} 3. Bf4 {[%clk 0:02:59.8]} 3... c6 {[%clk 0:02:53]} 4.
e3 {[%clk 0:02:59.7]} 4... Bf5 {[%clk 0:02:53.2]} 5. c4 {[%clk 0:02:59.5]} 5...
e6 {[%clk 0:02:50.7]} 6. Nc3 {[%clk 0:02:59.2]} 6... Nbd7 {[%clk 0:02:47.6]} 7.
Qb3 {[%clk 0:02:59.4]} 7... Qb6 {[%clk 0:02:42.6]} 8. c5 {[%clk 0:02:58.9]} 8...
Qxb3 {[%clk 0:02:39.7]} 9. axb3 {[%clk 0:02:59.8]} 9... a6 {[%clk 0:02:40.3]}
10. h3 {[%clk 0:02:59.6]} 10... h6 {[%clk 0:02:39.7]} 11. b4 {[%clk 0:02:59.9]}
11... Rc8 {[%clk 0:02:39.4]} 12. Nd2 {[%clk 0:02:59.2]} 12... Be7 {[%clk
0:02:39.5]} 13. Nb3 {[%clk 0:02:57]} 13... Bd8 {[%clk 0:02:39.7]} 14. Na5 {[%clk
0:02:55.3]} 14... Bxa5 {[%clk 0:02:39.9]} 15. bxa5 {[%clk 0:02:56.2]} 15... g5
{[%clk 0:02:40.4]} 16. Bd6 {[%clk 0:02:53.4]} 16... Kd8 {[%clk 0:02:40.1]} 17.
g4 {[%clk 0:02:24.7]} 17... Bg6 {[%clk 0:02:35.5]} 18. f3 {[%clk 0:02:16.4]}
18... Ne8 {[%clk 0:02:34]} 19. Bg3 {[%clk 0:02:16.3]} 19... f6 {[%clk
0:02:33.8]} 20. Kf2 {[%clk 0:02:08.9]} 20... e5 {[%clk 0:02:32.4]} 21. b4 {[%clk
0:02:01.1]} 21... Nc7 {[%clk 0:02:31.7]} 22. Na4 {[%clk 0:01:55.6]} 22... exd4
{[%clk 0:02:25.3]} 23. exd4 {[%clk 0:01:55.3]} 23... Ke7 {[%clk 0:02:25.3]} 24.
h4 {[%clk 0:01:44.9]} 24... Ne6 {[%clk 0:02:23.8]} 25. Ke3 {[%clk 0:01:16.1]}
25... Kf7 {[%clk 0:02:18.8]} 26. Bd3 {[%clk 0:01:14.2]} 26... Rce8 {[%clk
0:02:16.2]} 27. Bxg6+ {[%clk 0:01:11.8]} 27... Kxg6 {[%clk 0:02:17.1]} 28. h5+
{[%clk 0:01:06.7]} 28... Kf7 {[%clk 0:02:16.9]} 29. Kd3 {[%clk 0:01:06.7]} 29...
f5 {[%clk 0:01:48.2]} 30. gxf5 {[%clk 0:01:00.5]} 30... Ng7 {[%clk 0:01:48.1]}
31. Nb6 {[%clk 0:00:53.5]} 31... Nf6 {[%clk 0:01:28.9]} 32. Be5 {[%clk
0:00:47.6]} 32... Nfxh5 {[%clk 0:01:28.3]} 33. Nd7 {[%clk 0:00:35.1]} 33... Re7
{[%clk 0:01:19.8]} 34. Rxh5 {[%clk 0:00:31]} 34... Rxd7 {[%clk 0:00:48.4]} 35.
Rah1 {[%clk 0:00:16.4]} 35... Nxh5 {[%clk 0:00:48.6]} 36. Bxh8 {[%clk
0:00:16.4]} 36... Ng3 {[%clk 0:00:34]} 37. Rxh6 {[%clk 0:00:15.8]} 37... Kg8
{[%clk 0:00:19.6]} 38. Be5 {[%clk 0:00:13.3]} 38... Nxf5 {[%clk 0:00:20.1]} 39.
Rh8+ {[%clk 0:00:10.3]} 39... Kf7 {[%clk 0:00:20.4]} 40. Rh7+ {[%clk 0:00:10.8]}
40... Ke6 {[%clk 0:00:16.8]} 41. Rh5 {[%clk 0:00:11.4]} 41... Ke7 {[%clk
0:00:17.5]} 42. Rxg5 {[%clk 0:00:11.2]} 42... Ke6 {[%clk 0:00:16.4]} 43. Rg6+
{[%clk 0:00:09.5]} 43... Ke7 {[%clk 0:00:17.1]} 44. Rf6 {[%clk 0:00:08.7]} 44...
Ng7 {[%clk 0:00:08.9]} 45. Rd6 {[%clk 0:00:07]} 45... Rxd6 {[%clk 0:00:06.7]}
46. cxd6+ {[%clk 0:00:06.5]} 46... Kf7 {[%clk 0:00:07.1]} 47. Bxg7 {[%clk
0:00:06.7]} 47... Kxg7 {[%clk 0:00:07.9]} 48. d7 {[%clk 0:00:07.3]} 1-0